Cogmind - Beta 15 @@@ ROGUE MODE // 2025.06.22 @ 01:30:53 Player: CL-1C0 Result: Destroyed self with Mini Grenade Launcher Performance ------------- Evolutions (5) 2500 Regions Visited (6) 1200 Robots Destroyed (69) 345 Value Destroyed (2471) 2471 Prototype IDs (9) 180 Alien Tech Used (0) 0 Bonus (1125) 1125 TOTAL SCORE: 7821 Bonus ------- High Alert Combat Kills 125 Entered Garrisons 200 Registered with UFD 300 Met Optimus in HQ 500 Cogmind --------- Core Integrity 0/1000 Matter 260/300 Energy 275/275 System Corruption 5% Temperature Cool (0) Movement Treading (160) Location -5/Garrison Parts ------- > --- POWER (1) -------- Deuterium Engine > --- PROPULSION (2) --- Improved Heavy Treads > --- UTILITY (12) ----- Advanced Heat Sink Advanced Heat Sink Coolant Injector Large Storage Unit Gravity Neutralizer Machine Analyzer Spectral Analyzer Core Analyzer Armor Integrity Analyzer Improved Medium Armor Plating A0-MCA's Component Scanner > --- WEAPON (2) ------- Mini Grenade Launcher Companion Sword > --- INVENTORY (15) --- Improved Heavy Treads Armor Integrity Analyzer Heavy Laser Gauss Rifle Advanced Remote Datajack Advanced Remote Datajack CPS Tube (2) CPS Tube (2) CPS Tube (2) CPS Tube (2) CPS Tube (2) CPS Tube (2) CPS Tube (2) DRS Beacon (Ready) Peak State ------------ > --- POWER ------------ Light Antimatter Reactor > --- PROPULSION ------- Overtuned Huge Scrapsphere > --- UTILITY ---------- Scrap Suit Scrap Suit Large Storage Unit Spectral Analyzer Melee Analysis Suite Armor Integrity Analyzer Transmission Jammer Layered Heavy Armor Plating A0-MCA's Component Scanner > --- WEAPON ----------- Overtuned Quantum Rifle Companion Sword > --- INVENTORY -------- Improved Cooling System Armor Integrity Analyzer Overtuned Barrage Gun Mini Grenade Launcher Tiamat Missile Launcher Tiamat Missile Launcher CPS Tube CPS Tube CPS Tube CPS Tube CPS Tube CPS Tube CPS Tube DRS Beacon [Rating: 96] Favorites ----------- Power Light Ion Engine Engine Light Ion Engine Power Core Neutrino Core Reactor Light Antimatter Reactor Propulsion Light Treads Treads Light Treads Leg Aluminum Leg Wheel Compact Wheel Utility Large Storage Unit Device Disposable Heat Sink Storage Large Storage Unit Processor Spectral Analyzer Protection Light Armor Plating Weapon Beam Cannon Energy Gun Heavy Laser Energy Cannon Beam Cannon Ballistic Gun Light Assault Rifle Launcher Tiamat Missile Launcher Slashing Weapon Companion Sword Build | -11 -10 -10 -7 -7 -5 -5 ------- Run | Yrd Mat Sub Rec Scr Fac Gar Slots Evolved 10 | . . . . . 10 . Power . | . . . . . . . Propulsion . | . . . . . . . Utility 10 | . . . . . 10 . Weapon . | . . . . . . . Parts Attached 54 | 2 2 3 3 2 26 16 Power 6 | . . . 1 . 3 2 Engine 2 | . . . 1 . . 1 Core 2 | . . . . . 2 . Reactor 2 | . . . . . 1 1 Propulsion 8 | 2 . . 2 1 1 2 Treads 6 | 2 . . 2 . . 2 Leg . | . . . . . . . Wheel 2 | . . . . 1 1 . Hover . | . . . . . . . Flight . | . . . . . . . Utility 30 | . 2 1 . 1 19 7 Device 14 | . . 1 . . 7 6 Storage 2 | . 1 . . 1 . . Processor 8 | . . . . . 8 . Hackware . | . . . . . . . Protection 6 | . 1 . . . 4 1 Artifact . | . . . . . . . Weapon 10 | . . 2 . . 3 5 Energy Gun 2 | . . . . . 1 1 Energy Cannon 2 | . . 2 . . . . Ballistic Gun 2 | . . . . . 1 1 Ballistic Cannon . | . . . . . . . Launcher 3 | . . . . . . 3 Special Weapon . | . . . . . . . Impact Weapon . | . . . . . . . Slashing Weapon 1 | . . . . . 1 . Piercing Weapon . | . . . . . . . Special Melee Weapon . | . . . . . . . Unidentified Prototypes 1 | . . . . . 1 . Parts Lost 19 | . . 1 1 . 3 14 Power 4 | . . . 1 . 1 2 Propulsion 1 | . . . . . . 1 Utility 10 | . . 1 . . 1 8 Weapon 4 | . . . . . 1 3 Highest Loss Streak 4 | . . 1 1 . 2 4 To Critical Strikes . | . . . . . . . Average Backups 14 | 7 5 10 13 18 13 12 Power . | 1 1 2 3 . . . Propulsion 2 | 5 2 2 2 3 . . Utility 2 | . . 1 2 4 2 1 Weapon 5 | 1 2 5 6 6 3 3 Tool/Special . | . . . . . . . Unused Backups 33 | . . . . 11 10 12 Power 3 | . . . . 3 . . Propulsion 5 | . . . . 1 3 1 Utility 6 | . . . . 2 3 1 Weapon 9 | . . . . 5 4 . Tool/Special 10 | . . . . . . 10 Average Slot Usage (%) 89 | . 94 99 99 90 76 77 Engine 10 | . 14 14 13 14 . . Treads 17 | . 28 28 28 19 . 2 Wheel 4 | . . . . 8 4 1 Device 8 | . . 5 14 4 14 17 Storage 11 | . 14 14 14 13 5 5 Processor 6 | . . . . . 22 31 Protection 3 | . 8 8 . . 9 1 Energy Cannon 16 | . . 13 28 28 . . Ballistic Gun 4 | . 28 14 . . 3 . Slashing Weapon 1 | . . . . . 4 5 Peak Build Rating 96 | 6 7 9 10 22 96 93 Average Rating 29 | 4 6 7 9 14 85 80 On Entrance 21 | 6 6 7 9 10 22 92 Naked Turns . | . . . . . . . Heaviest Build 213 | 11 29 30 30 209 213 57 Greatest Support 87 | 40 40 40 40 40 20 87 Greatest Overweight (x) 13 | . . . . 13 10 11 Average Overweight (x) 2 | . . . . 6 2 1 Largest Inventory Capacity 35 | 8 15 15 15 35 35 15 Average Capacity 20 | 8 10 15 15 28 15 15 Most Carried 35 | 8 9 13 15 35 35 15 Average Carried 15 | 6 5 10 14 20 14 14 Final Capacity 35 | 8 15 15 15 35 15 15 Final Carried 35 | 4 9 13 15 35 14 15 Class Distribution -------------------- 47% | Mutant 27% | Hauler-Mutant 13% | Scrapper 10% | Scavenger-Mutant Dominant Class ---------------- Mutant | -10/Materials Mutant | -10/Subcaves Mutant | -7/Recycling Hauler-Mutant | -7/Scraptown Scrapper | -5/Factory Scavenger-Mutant | -5/Garrison Resources | -11 -10 -10 -7 -7 -5 -5 ----------- Run | Yrd Mat Sub Rec Scr Fac Gar Matter Collected 1263 | 186 131 123 30 20 282 491 Remotely . | . . . . . . . Salvage Created 4035 | . 210 181 148 . 1927 1569 Parts 152 | . 11 10 3 . 70 58 Haulers Intercepted 3 | . . . . . 3 . Recyclers Shooed 3 | . 1 . . . 2 . Parts Field Recycled . | . . . . . . . Retrieved Matter . | . . . . . . . Parts Self-Destructed 10 | . . 10 . . . . Prevented . | . . . . . . . Kills | -11 -10 -10 -7 -7 -5 -5 ------- Run | Yrd Mat Sub Rec Scr Fac Gar Combat Hostiles Destroyed 53 | . 6 7 2 . 18 20 Melee 29 | . . . . . 18 11 Guns 10 | . 6 3 . . . 1 Cannons 6 | . . 4 2 . . . AOE 8 | . . . . . . 8 Classes Destroyed 13 | . 2 2 1 . 6 2 Worker 4 | . . . . . 4 . Builder 2 | . . . . . 2 . Hauler 3 | . . . . . 3 . Recycler 3 | . . . . . 3 . Mechanic 2 | . . . . . 2 . Turret 2 | . . 2 . . . . Swarmer 15 | . 1 6 . . 4 4 Cutter 1 | . . . . . . 1 Grunt 25 | . 5 . . . 11 9 Sentry 6 | . . . 2 . 1 3 Hunter 2 | . . . . . . 2 Programmer 3 | . . . . . 2 1 Subdweller 1 | . . 1 . . . . Best Kill Streak 8 | . 2 3 1 . 8 7 Combat Bots Only 7 | . 2 3 1 . 4 7 Max Kills in Single Turn 2 | . 1 1 1 . 1 2 Gunslinging . | . . . . . . . Exploded 2 | . . . . . . 2 Melee 1 | . . . . . 1 1 Uniques/NPCs Destroyed . | . . . . . . . Combat | -11 -10 -10 -7 -7 -5 -5 -------- Run | Yrd Mat Sub Rec Scr Fac Gar Hostile Shots Fired 484 | . 36 93 27 . 113 215 Missed 110 | . 9 36 6 . 22 37 Hits 374 | . 27 57 21 . 91 178 Melee 2 | . . . . . . 2 Projectile 372 | . 27 57 21 . 91 176 AOE 2 | . . . . . . 2 Critical Strikes 11 | . . . . . 3 8 Actively Blocked 1 | . . . . . 1 . Part Disruptions 1 | . . . . . . 1 Damage Taken 6108 | . 270 404 166 . 1675 3593 Core 1192 | . 95 56 22 . 174 845 Absorbed by Shields . | . . . . . . . Redirected to Shielding 134 | . . . . . 134 . Regen/Repaired (Parts) 20 | . . . . . . 20 Core Remaining (%) 65 | 100 . . . 30 . . Volleys Fired 92 | . 34 35 5 . . 18 Largest 2 | . 2 2 2 . . 1 Hottest 120 | . 40 120 120 . . 69 Shots Fired 145 | . 68 48 10 . 2 17 Gun 94 | . 68 22 . . 2 2 Cannon 36 | . . 26 10 . . . Launcher 15 | . . . . . . 15 Special . | . . . . . . . Kinetic 90 | . 68 22 . . . . Thermal 40 | . . 26 10 . 2 2 Explosive 15 | . . . . . . 15 Electromagnetic . | . . . . . . . Robot Hit Streak 25 | . 7 8 15 . . 25 Robot Miss Streak 3 | . 3 3 . . . . Penetration Max . | . . . . . . . Secondary Targets 1 | . . 1 . . . . Max Gunslinging Chain 1 | . . 1 . . . . Shots Hit Robots 245 | . 41 30 9 . 75 90 Core Hits 122 | . 15 13 7 . 36 51 Critical Kills 1 | . 1 . . . . . Critical Parts Destroyed . | . . . . . . . Critical Strikes 7 | . 1 . . . 2 4 Destroy 1 | . 1 . . . . . Melee Attacks 208 | . . . . . 101 107 Impact . | . . . . . . . Slashing 208 | . . . . . 101 107 Piercing . | . . . . . . . Sneak Attacks 18 | . . . . . 18 . Combat Hostiles . | . . . . . . . Follow-up Attacks 1 | . . . . . 1 . Damage Inflicted 10358 | . 465 443 177 . 3802 5471 Guns 641 | . 463 138 . . . 40 Cannons 462 | . . 305 157 . . . Explosions 1406 | . . . . . . 1406 Melee 7827 | . . . . . 3802 4025 Ramming 22 | . 2 . 20 . . . Kinetic 601 | . 463 138 . . . . Thermal 502 | . . 305 157 . . 40 Explosive 1406 | . . . . . . 1406 Electromagnetic . | . . . . . . . Impact . | . . . . . . . Slashing 7827 | . . . . . 3802 4025 Piercing . | . . . . . . . Highest Corruption 5 | . . . . . 4 5 Average Corruption 4 | . . . . . 3 4 Corruption Purged 7 | . . . . . 7 . Corruption Blocked . | . . . . . . . Effects 32 | . . . . . 8 24 Message Errors 5 | . . . . . 1 4 Matter Fused 7 | . . . . . 1 6 Heat Flow Errors 4 | . . . . . . 4 Energy Discharges 5 | . . . . . 1 4 Parts Rejected 1 | . . . . . . 1 Data Loss (minor) 8 | . . . . . 3 5 Misfires 2 | . . . . . 2 . Overload Shots . | . . . . . . . Overflow Damage 656 | . . 7 . . 518 131 Projectiles 7 | . . 7 . . . . Explosions 69 | . . . . . . 69 Melee 580 | . . . . . 518 62 Knockbacks 1 | . . . 1 . . . Impact 1 | . . . 1 . . . Kinetic . | . . . . . . . Secondary . | . . . . . . . Self-Inflicted Damage 100 | . . . . . . 100 Shots 3 | . . . . . . 3 Rammed 8 | . 1 . 7 . . . Targets Rammed 8 | . 1 . 7 . . . Kicked . | . . . . . . . Crushed . | . . . . . . . Highest Temperature 230 | . 24 9 196 . 90 230 Average Temperature 45 | . 6 5 88 . 52 87 Received Heat Transfer 1284 | . 114 90 54 . 381 645 Siege Activations . | . . . . . . . Martial Activations . | . . . . . . . Shielding Activations . | . . . . . . . Robots Disrupted . | . . . . . . . Combat Hostiles . | . . . . . . . Robots Corrupted . | . . . . . . . Combat Hostiles . | . . . . . . . Parts Fried . | . . . . . . . Impact Corruptions . | . . . . . . . Robots Melted . | . . . . . . . Combat Hostiles . | . . . . . . . Parts Melted 3 | . . 1 2 . . . Heat Transferred 1036 | . . 629 333 . . 74 Parts Sabotaged . | . . . . . . . Parts Stolen . | . . . . . . . Parts Stripped . | . . . . . . . Power Chain Reactions . | . . . . . . . Alert | -11 -10 -10 -7 -7 -5 -5 ------- Run | Yrd Mat Sub Rec Scr Fac Gar Maximum Alert Level 3 | . . . . . 1 3 Low Security (%) 63 | 100 100 . 100 . 60 6 Level 1 15 | . . . . . 39 18 Level 2 19 | . . . . . . 71 Level 3 . | . . . . . . 2 Level 4 . | . . . . . . . Level 5 . | . . . . . . . High Security . | . . . . . . . Max Security . | . . . . . . . Peak Influence 783 | . 138 . 90 . 280 783 Initial 150 | . . . 31 . . 150 Average 180 | . 32 . 21 . 146 468 Influence Increases 2135 | . 216 245 236 . 635 803 Destroy 0b10 Robot/C 1080 | . 120 160 40 . 360 400 Destroy 0b10 Robot/NC 100 | . . . . . 70 30 Destroy Leader 116 | . 30 10 . . 46 30 Successful Hack 36 | . 6 . 16 . . 14 Select Force Hacks 240 | . 60 . 180 . . . Anti-Garrison Action 100 | . . . . . . 100 Destroy Structure 193 | . . . . . 24 169 Partial Spotted 45 | . . . . . 30 15 Lose Combat Pursuer 225 | . . 75 . . 105 45 Influence Decreases 1322 | . 216 180 301 . 420 205 Entered New Map 99 | . . . 34 . . 65 Time Decay 1043 | . 216 180 257 . 390 . Lost Part 180 | . . . 10 . 30 140 Squads Dispatched 5 | . 3 . . . 2 . Investigation 3 | . 3 . . . . . Extermination 2 | . . . . . 2 . Reinforcement . | . . . . . . . Assault . | . . . . . . . Garrison . | . . . . . . . Intercept . | . . . . . . . Searches Triggered . | . . . . . . . Construction Impeded . | . . . . . . . Haulers Reinforced . | . . . . . . . Active Scanning Responses . | . . . . . . . Cargo Convoy Interrupts . | . . . . . . . Stealth | -11 -10 -10 -7 -7 -5 -5 --------- Run | Yrd Mat Sub Rec Scr Fac Gar Distress Signals 1 | . 1 . . . . . Communications Jammed . | . . . . . . . Distress Signals . | . . . . . . . Times Spotted 80 | . 13 11 2 . 29 25 Peak Tracking Total 7 | . 3 4 1 . 7 4 Tactical Retreats 8 | . . 2 . . 4 2 Traps | -11 -10 -10 -7 -7 -5 -5 ------- Run | Yrd Mat Sub Rec Scr Fac Gar Traps Triggered 7 | . 1 . . . 6 . Indirectly . | . . . . . . . Trap Hack Attempts . | . . . . . . . Triggered . | . . . . . . . Disarmed . | . . . . . . . Reprogrammed . | . . . . . . . Reused . | . . . . . . . Traps Extracted . | . . . . . . . Installed . | . . . . . . . Triggered . | . . . . . . . Machines | -11 -10 -10 -7 -7 -5 -5 ---------- Run | Yrd Mat Sub Rec Scr Fac Gar Machines Disabled 2 | . . 2 . . . . Max in Single Turn 1 | . . 1 . . . . Machines Repaired . | . . . . . . . Machines Dismantled . | . . . . . . . Machines Sabotaged . | . . . . . . . Overloaded Fab Kills . | . . . . . . . Hacking | -11 -10 -10 -7 -7 -5 -5 --------- Run | Yrd Mat Sub Rec Scr Fac Gar Machines Accessed 21 | . 3 . 10 3 4 1 Terminals 5 | . 1 . 3 . . 1 Fabricators 3 | . . . . . 3 . Repair Stations . | . . . . . . . Recycling Units 9 | . 2 . 7 . . . Scanalyzers . | . . . . . . . Garrison Access 1 | . . . . . 1 . Total Hacks 44 | . 7 . 16 13 6 2 Successful 27 | . 5 . 7 13 1 1 Failed 16 | . 1 . 9 . 5 1 Catastrophic 4 | . . . 3 . 1 . Database Lockouts 1 | . 1 . . . . . Manual 23 | . 7 . 11 . 5 . Terminals 12 | . 4 . 6 . . 2 Fabricators 5 | . . . . . 5 . Repair Stations . | . . . . . . . Recycling Units 13 | . 3 . 10 . . . Scanalyzers . | . . . . . . . Garrison Access 1 | . . . . . 1 . Terminal Hacks 18 | . 3 . 1 13 . 1 Record 4 | . . . . 4 . . Part Schematic 1 | . . . 1 . . . Robot Analysis 11 | . 3 . . 8 . . Open Door 1 | . . . . 1 . . Emergency Access Points 1 | . . . . . . 1 Fabricator Hacks . | . . . . . . . Repair Station Hacks . | . . . . . . . Recycling Unit Hacks . | . . . . . . . Scanalyzer . | . . . . . . . Garrison Access Hacks 1 | . . . . . 1 . Unlock Access 1 | . . . . . 1 . Unauthorized Hacks 8 | . 2 . 6 . . . Terminals . | . . . . . . . Fabricators . | . . . . . . . Repair Stations . | . . . . . . . Recycling Units 8 | . 2 . 6 . . . Tunnel 8 | . 2 . 6 . . . Scanalyzers . | . . . . . . . Garrison Access . | . . . . . . . Data Cores Recovered . | . . . . . . . Used . | . . . . . . . Hacking Detections 9 | . . . 4 . 4 1 Full Trace Events 3 | . . . 3 . . . Feedback Events . | . . . . . . . Feedback Blocked . | . . . . . . . Robot Schematics Acquired . | . . . . . . . Robots Built . | . . . . . . . Authchips . | . . . . . . . Time . | . . . . . . . Total Robot Build Rating . | . . . . . . . Part Schematics Acquired 1 | . . . 1 . . . Parts Built . | . . . . . . . Authchips . | . . . . . . . Time . | . . . . . . . Total Part Build Rating . | . . . . . . . Parts Repaired . | . . . . . . . Time . | . . . . . . . Parts Recycled . | . . . . . . . Recycled Matter . | . . . . . . . Retrieved Matter . | . . . . . . . Retrieved Components . | . . . . . . . Parts Scanalyzed . | . . . . . . . Part Schematics Acquired . | . . . . . . . Parts Damaged . | . . . . . . . Bothacking | -11 -10 -10 -7 -7 -5 -5 ------------ Run | Yrd Mat Sub Rec Scr Fac Gar Used RIF Installer . | . . . . . . . Robots Hacked . | . . . . . . . Non-combat . | . . . . . . . Combat . | . . . . . . . Robot Hacks Applied . | . . . . . . . Relay Couplers Released 4 | . . . . . . 4 Programmers 4 | . . . . . . 4 Fabnet Peak Effective % . | . . . . . . . Robots Rewired . | . . . . . . . Allies Hacked . | . . . . . . . Hacks Repelled . | . . . . . . . Allies | -11 -10 -10 -7 -7 -5 -5 -------- Run | Yrd Mat Sub Rec Scr Fac Gar Total Allies . | . . . . . . . Largest Group . | . . . . . . . Highest-Rated Group . | . . . . . . . Highest-Rated Ally . | . . . . . . . Total Orders . | . . . . . . . Ally Attacks . | . . . . . . . Total Damage . | . . . . . . . Kills . | . . . . . . . Allies Corrupted . | . . . . . . . Allies Melted . | . . . . . . . Intel | -11 -10 -10 -7 -7 -5 -5 ------- Run | Yrd Mat Sub Rec Scr Fac Gar Active Infowar (turns) 2427 | . . . . . 1193 1234 Optics 2427 | . . . . . 1193 1234 Machine Analysis 1593 | . . . . . 359 1234 Jamming 539 | . . . . . 242 297 Robot Analysis Total 11 | . 3 . . 8 . . Derelict Logs Recovered 3 | . . 1 . 2 . . Drone Launches . | . . . . . . . Drone Recoveries . | . . . . . . . Exploration | -11 -10 -10 -7 -7 -5 -5 ------------- Run | Yrd Mat Sub Rec Scr Fac Gar Turns Passed 9572 | 5 855 1054 1163 4064 1197 1234 Spaces Moved 4795 | 1 319 601 706 1739 878 551 Core 49 | . . . . . . 49 Treads 2816 | 1 319 601 706 882 . 307 Legs . | . . . . . . . Wheels 1930 | . . . . 857 878 195 Hover . | . . . . . . . Flight . | . . . . . . . Fastest Speed 80 | 160 160 160 160 160 80 80 Average Speed 174 | 160 160 160 160 231 95 159 Slowest Speed 600 | 160 160 160 160 560 170 600 Overloaded Moves . | . . . . . . . Propulsion Burnouts . | . . . . . . . Robots Hopped . | . . . . . . . Potential Cave-ins . | . . . . . . . Cave-ins Triggered . | . . . . . . . Exploration Rate (%) 50 | 2 59 24 94 90 23 60 Regions Visited 6 Branch Regions 3 Pre-discovered Areas 9 | . 2 1 6 . . . Known Exits Taken 1 | . . . . . 1 . Unknown Exits Taken 5 | 1 1 1 1 1 . . Scrap Searched 4 | . . . . 4 . . Spaces Dug 33 | . . . . . 9 24 Terrain Destroyed 79 | . . . . . 11 68 Melee 11 | . . . . . 9 2 Projectile 2 | . . . . . 2 . AOE 66 | . . . . . . 66 Terrain Rammed . | . . . . . . . Walls Destroyed . | . . . . . . . Machines Disabled . | . . . . . . . Actions | -11 -10 -10 -7 -7 -5 -5 --------- Run | Yrd Mat Sub Rec Scr Fac Gar Total 5602 | 6 601 646 726 1794 1094 735 Wait 332 | . 242 4 . . 55 31 Move 4790 | . 318 600 705 1738 878 551 Hop . | . . . . . . . Pick Up 57 | . 4 4 3 34 8 4 Fast Attach 28 | . 1 1 . 2 10 14 Attach 17 | 2 . . 1 . 12 2 Detach 3 | 2 . . . . 1 . Swap 15 | . 1 2 2 . 6 4 Drop 53 | 2 . . 3 20 24 4 Fire 92 | . 34 35 5 . . 18 Melee 207 | . . . . . 100 107 Ram . | . . . . . . . Kick . | . . . . . . . Crush 8 | . 1 . 7 . . . Escape Stasis . | . . . . . . . Rewire . | . . . . . . . Trap . | . . . . . . . Miscellaneous . | . . . . . . . Route ------- -11/Scrapyard -10/Materials (discovered 2 exits: [*Mat] / [*Sub]) -10/Subcaves (discovered 2 exits: [*Mat] / *Rec) -7/Recycling (discovered 2 exits: *Fac / *Scr) -7/Scraptown (discovered 2 exits: *Fac x2) -5/Factory -5/Garrison (discovered 2 exits: [*Ext x2]) History --------- Turn | Location | Event 6 | -11/Scrapyard | Discovered new exit (range 0) 6 | -11/Scrapyard | Entered Materials 171 | -10/Materials | Central database locked down 311 | -10/Materials | Build established: Mutant 441 | -10/Materials | Discovered new exit (range 5) 835 | -10/Materials | Discovered new exit (range 8) 861 | -10/Materials | Entered Subcaves 861 | -10/Subcaves | Discovered new exit (range 9) 883 | -10/Subcaves | Shifting Twisted Machinery released Sub. Laser 935 | -10/Subcaves | Learned location of Recycling (-7) 1175 | -10/Subcaves | A swath of the cavern ceiling suddenly collapsed 1549 | -10/Subcaves | Shifting Twisted Machinery released Sub. Power Source 1566 | -10/Subcaves | Core integrity fell below 50% 1605 | -10/Subcaves | Discovered new exit (range 11) 1915 | -10/Subcaves | Entered Recycling 2408 | -7/Recycling | Discovered new exit (range 15) 3038 | -7/Recycling | Scanned before Scraplab entrance 3062 | -7/Recycling | Entered Scraplab 3075 | -7/Recycling | Discovered new exit (range 2) 3078 | -7/Recycling | Entered Scraptown 3322 | -7/Scraptown | Discovered new exit (range 11) 3422 | -7/Scraptown | Scanned Subdweller tech in exchange for log data 3427 | -7/Scraptown | Learned location of 2 exits from Proximity Caves 3429 | -7/Scraptown | Learned Research emergency access door positions 3475 | -7/Scraptown | Visited Observation Area 3492 | -7/Scraptown | Visited Red Mages 3550 | -7/Scraptown | Visited Spacefarers 3627 | -7/Scraptown | Visited Symbiants 3647 | -7/Scraptown | Visited Junk Repository 3697 | -7/Scraptown | Visited Cyclists 3731 | -7/Scraptown | Visited UFD Registry 3774 | -7/Scraptown | Registered with UFD as "Steamsink" 3806 | -7/Scraptown | Entered Cyclist Reading Room 3884 | -7/Scraptown | Visited Abandonware Association 3907 | -7/Scraptown | Learned abandonware demo "KABOOM.EXE" 3947 | -7/Scraptown | Visited Junk Repository 3998 | -7/Scraptown | Visited Scrapoid Research Area 4017 | -7/Scraptown | Visited Curators Association 4047 | -7/Scraptown | Visited Derelict Rescue Squad 4084 | -7/Scraptown | Visited Analyses Database 4111 | -7/Scraptown | Visited A0-MCA Data Center 4137 | -7/Scraptown | Visited Sword Containment 4194 | -7/Scraptown | Visited Infowarlord's Domain 4226 | -7/Scraptown | Visited Modified Component R&D 4776 | -7/Scraptown | Build established: Hauler-Mutant 4794 | -7/Scraptown | Found DRS Beacon 4877 | -7/Scraptown | Given a C rating by A0-MCA 4886 | -7/Scraptown | Found A0-MCA's Component Scanner 5805 | -7/Scraptown | Found Relay Coupler [Proto] 5809 | -7/Scraptown | Found Relay Coupler [Proto] 6270 | -7/Scraptown | Found Spectral Analyzer 6715 | -7/Scraptown | Discovered new exit (range 3) 6768 | -7/Scraptown | Found Scrap Suit 6772 | -7/Scraptown | Found Scrap Suit 6974 | -7/Scraptown | Met Optimus 6974 | -7/Scraptown | Accepted into 0bPrime 7142 | -7/Scraptown | Entered Factory 7142 | -5/Factory | Evolved 10 slots: Utility x10 7435 | -5/Factory | Build established: Scrapper 8206 | -5/Factory | Spotted B-75 Beast 8339 | -5/Factory | Identified exit to Garrison 8339 | -5/Factory | Entered Garrison 8397 | -5/Garrison | Triggered checkpoint 8599 | -5/Garrison | Triggered checkpoint 8611 | -5/Garrison | Triggered checkpoint 8620 | -5/Garrison | Core integrity fell below 50% 8658 | -5/Garrison | Lost 4 parts (1p3u) 8661 | -5/Garrison | Destroyed 7 combat bots 8818 | -5/Garrison | Core integrity fell below 20% 8823 | -5/Garrison | Lost 3 parts (2u1w) 8948 | -5/Garrison | Discovered new exit (range 15) 8967 | -5/Garrison | Build established: Scavenger-Mutant 9171 | -5/Garrison | Lost 3 parts (1p1n1w) 9566 | -5/Garrison | Discovered new exit (range 8) 9573 | -5/Garrison | Destroyed self with Mini Grenade Launcher Last Messages --------------- Companion Sword: "Why must I be so near this... thing." 09466_ OHTWSSWNV:VWNEKEL QT#V 09490_ 2SCJ QBQKB IH6RLVLH4LQVMZ5GU0A0YOKXME3 09493_ Dropped Adv. Remote Datajack. 09493_ Acquired Adv. Remote Datajack. 09495_ Dropped Ovr. Barrage Gun. 09495_ Acquired Adv. Remote Datajack. 09536_ Slug penetrates Wall. 09539_ ALERT: Garrison interior compromised. 09540_ System corrupted: Energy discharge (-66). 09545_ Penetrated by Slug. 09545_ Adv. Heat Sink destroyed. 09546_ Destroyed Wave Gun. 09548_ Penetrated by Slug. 09552_ Y-64 Sentinel destroyed. 09558_ Acquired Imp. Medium Armor Plating. 09559_ Acquired 10 matter. 09566_ EXIT=FOUND 09573_ Destroyed Imp. Surge Thruster. 09573_ C-35 Carver destroyed. Map ----- +----------------------------------------------------+ | ??????????????????????????????????????????????? | | ??????????????????????????????????????????????? | | ??????????????????????????????????????????????? | | ????????????????????"?????????????????????????? | | ???????????????????? ?????????????????????????? | | ???????????????????" ????????????????????????? | | ???????????????????? ????????????????????????? | | ???????????????????? ????????????????????????? | | ????????????????????" ????????????????????????? | | ???????????????????? ????????????????????????? | | ???????????????????? ???????????#+##????###### | | ???????????????????? ???????????! !????#[[[ [ | | ???????????????????? ???????????! !????#[ [ | | ???????????????????? ???????????# ###### [ | | ??????????????????### ???????????# + | | ?????????????????## # ##?????????# + | | ?????????????????? #?????????# #++??# | | | ?????????????????? #?????????# #????#! [ | | ??????????????????? < #????????? #????#!!!| | | ??????????????????? ?????????# #????####"# | | ???????????????????# ####??????# #???????# # | | ?????????????????### ###????# #???????# # | | ?????????????????? ????## ###?????# # | | ??????????????????## #?????# # ##????# # | | ??????????????????# =cc #?????# ##??##[# | | ?????????+????????# @ ###+#### # # ####%+# | | ??????????????+???# = % # | | ??????????+???????# % %% # | | ??????????+???????# # ###### ### ##### # | | ??????????+???????### ????# #?### # #???# # | | ????????????????????# ????## #??# ####???# # | | ????????????????????# ?????# #??## #??????# # | | ????????????????????#+?????# #???# #??????# # | | ??????????????????????????? +???+ #???#??# # | | ???????????????????????????###???# #???# ## | | ?????????????????????????????????# #???# # # | | ?????????????????????????????????# ##### [ | | ?????????????????????????????????# % | | ?????????????????????????????????# !=% | | ??????????????????+??+??+????????##+####### * | | ????????????????????????????????????????### # | | ????????????????????????????????????+???+?" | | ??????????????????????????????????????????" | | ??????????????????????????????????????????" | | ??????????????????????????????????????????" | | ??????????????????????????????????????????# # | | ?????????????????????????????????????###### # | | ????????????????????????????????? | | ????????????????????????????????? | | ??????????????????????????????????????+#### | +----------------------------------------------------+ Best States ------------- Heat Dissipation 78 Coolant Potential 65 Energy Generation 21 Energy Capacity 315 Matter Stores 300 Matter Capacity 300 Sight Range 24 Terrain Scan Density 10 Jamming Range 14 Additional Mass Support 12 Armor Coverage 600 Propulsion Shielding 66 Utility Shielding 66 Evasion (%) 44 Melee Accuracy 5 Core Analysis 6 Armor Integrity Analysis 30 Recoil Reduction 2 Item Schematics ----------------- Recalibrator | -7/Recycling | Hacked Robot Schematics ------------------ None Fabricated ------------ Nothing Repaired ---------- Nothing Alien Tech Used ----------------- None Achievements -------------- None Challenges ------------ None Game ------ Seed AnalysisFactoryMultirail Manual? 0 Play Time 00:54:27 Cumulative 552.3 hours Start 2025.06.22 @ 00:24:38 End 2025.06.22 @ 01:30:53 Sessions 1 Manual Loads 0 Difficulty Rogue Special Mode None Game No. 665 Rogue 665 Adventurer 0 Explorer 0 Win Type - Total 20 Types 14/0/5/1/0/0/0/0/0/0 Lore% 85 Gallery% 83 Achievement% 83 Wizard Run 0 Options --------- Layout 0 ASCII 0 Keyboard 0 Movement Numpad Keybinds 0 Fullscreen 1 Font 18/SmallcapsGlow Map View 76x50 Zoom Use 0% Tactical HUD 1 Map Filters NONE Filters NONE Steam 1 RUN: b28561ea-0e6a-4ad5-bdd5-d06ccd0ca1be